bitfinex/quotes_BTCUSD_20250530
["timestamp","ask_amount","ask_price","bid_price","bid_amount"]
[1748601202565,0.21765783,105670.0,105660.0,0.5989156]
[1748601202786,0.21765837,105670.0,105660.0,0.39070129]
[1748601203007,0.18929447,105680.0,105670.0,0.00014701]
[1748601203229,0.18929447,105680.0,105670.0,0.04003698]
[1748601203453,0.18929447,105680.0,105670.0,0.02463698]
[1748601203679,0.18929447,105680.0,105670.0,0.00903698]
[1748601203918,0.14929447,105680.0,105670.0,0.00903698]
[1748601204347,0.14929447,105680.0,105670.0,0.02523698]
[1748601205235,0.14929447,105680.0,105670.0,0.02723698]
[1748601205640,0.14929447,105680.0,105670.0,0.04573698]
[1748601207516,0.14929447,105680.0,105670.0,0.04575465]
[1748601207768,0.14929447,105680.0,105670.0,0.4768086]
[1748601208018,0.14929447,105680.0,105670.0,0.48794315]
[1748601208296,0.14929447,105680.0,105670.0,0.78234315]
[1748601209138,0.14929447,105680.0,105670.0,0.97161162]
[1748601209350,0.14929447,105680.0,105670.0,0.79725744]
[1748601209598,0.14929447,105680.0,105670.0,0.83234315]
[1748601209880,0.14929447,105680.0,105670.0,0.53794315]
[1748601210167,0.14929447,105680.0,105670.0,0.84721744]
[1748601211210,0.10929447,105680.0,105670.0,0.83230315]
[1748601211725,0.10929447,105680.0,105670.0,0.84721825]
[1748601212382,0.10929447,105680.0,105670.0,0.87561325]
[1748601212612,0.10929447,105680.0,105670.0,0.86069896]
[1748601212842,0.11875699,105680.0,105670.0,1.04996743]
[1748601213173,0.11875699,105680.0,105670.0,1.08380847]
[1748601213392,0.28392636,105690.0,105680.0,0.22069757]
[1748601213608,0.28392636,105690.0,105680.0,0.57906809]
[1748601213835,0.28392636,105690.0,105680.0,0.40640058]
[1748601214092,0.28392636,105690.0,105680.0,0.39148474]
[1748601214315,0.28392636,105690.0,105680.0,0.41987874]
[1748601214756,0.28392636,105690.0,105680.0,0.41992771]
[1748601215648,0.28392636,105690.0,105680.0,0.42092771]
[1748601215862,0.28392636,105690.0,105680.0,0.42092014]
[1748601216507,0.28392636,105690.0,105680.0,0.51197409]
[1748601216732,0.28392636,105690.0,105680.0,0.7201496]
[1748601216968,0.28392636,105690.0,105680.0,0.71068717]
[1748601217399,0.28392636,105690.0,105680.0,0.7201496]
[1748601218073,0.24392636,105690.0,105680.0,0.73871574]
[1748601218744,0.24392636,105690.0,105680.0,0.23871574]
[1748601219412,0.02838399,105690.0,105680.0,0.23871556]
[1748601219731,0.2270781,105690.0,105680.0,0.26271858]
[1748601219820,0.21761692,105690.0,105680.0,0.26271858]
[1748601220485,0.22707855,105690.0,105680.0,0.27418066]
[1748601220705,0.22707855,105690.0,105680.0,0.61418066]
[1748601220935,0.21761728,105690.0,105680.0,0.59525641]
[1748601221379,0.21761728,105690.0,105680.0,0.60671849]
[1748601221834,0.21761728,105690.0,105680.0,0.63811849]
[1748601222306,0.00946118,105690.0,105680.0,0.64758048]
[1748601222557,0.01892101,105700.0,105690.0,0.23925529]
[1748601222796,0.20813576,105700.0,105690.0,0.52403411]
[1748601223012,0.20813576,105700.0,105690.0,0.62962891]
[1748601223243,0.20813576,105700.0,105690.0,0.62016746]
[1748601223503,0.20813576,105700.0,105690.0,0.63909063]
[1748601223765,0.01892031,105700.0,105690.0,0.99801326]
[1748601224008,0.21759579,105700.0,105690.0,0.99801326]
[1748601224236,0.01892049,105700.0,105690.0,0.99801326]
[1748601224457,0.03784159,105700.0,105690.0,1.00747426]
[1748601224679,0.22705643,105700.0,105690.0,1.00747444]
[1748601224894,0.03784114,105700.0,105690.0,1.0074739]
[1748601225116,0.18708541,105710.0,105690.0,1.0074739]
[1748601225331,0.01892101,105700.0,105690.0,1.00647336]
[1748601226215,0.02838121,105700.0,105690.0,1.00647336]
[1748601226450,0.03784105,105700.0,105690.0,1.00647336]
[1748601226679,0.0283805,105700.0,105690.0,1.40647336]
[1748601227641,0.21757547,105710.0,105700.0,0.58043576]
[1748601227873,0.21757547,105710.0,105700.0,0.38176073]
[1748601227874,0.20811608,105710.0,105700.0,0.38176073]
[1748601228328,0.20811608,105710.0,105700.0,0.58043612]
[1748601228590,0.20811608,105710.0,105700.0,0.58989667]
[1748601228812,0.20811608,105710.0,105700.0,0.61427133]
[1748601229034,0.20811608,105710.0,105700.0,0.61727133]
[1748601229260,0.20811608,105710.0,105700.0,0.73232624]
[1748601229261,0.02837853,105710.0,105700.0,0.73232624]
[1748601229505,0.03783828,105710.0,105700.0,0.73232624]
[1748601229736,0.23649497,105710.0,105700.0,0.76371242]
[1748601229968,0.20811644,105710.0,105700.0,0.52719509]
[1748601230229,0.20811644,105710.0,105700.0,0.9757843]
[1748601230446,0.20811644,105710.0,105700.0,0.97033083]
[1748601230704,0.20811644,105710.0,105700.0,0.97925041]
[1748601230937,0.19865669,105710.0,105700.0,0.97925041]
[1748601231373,0.19865669,105710.0,105700.0,0.77111438]
[1748601231374,0.18919685,105710.0,105700.0,0.77111438]
[1748601231593,0.18919685,105710.0,105700.0,0.98578977]
[1748601232258,0.22109685,105710.0,105700.0,0.01491958]
[1748601232519,0.22109685,105710.0,105700.0,0.006]
[1748601232735,0.22109685,105710.0,105700.0,0.02981014]
[1748601232946,0.22109685,105710.0,105700.0,0.31504112]
[1748601233158,0.22109685,105710.0,105700.0,0.32397218]
[1748601233418,0.22109685,105710.0,105700.0,0.32097218]
[1748601233637,0.18919685,105710.0,105700.0,0.31797218]
[1748601233853,0.21969685,105710.0,105700.0,0.02581218]
[1748601234065,0.21969685,105710.0,105700.0,0.31997218]
[1748601234279,0.21969685,105710.0,105700.0,0.32197218]
[1748601234922,0.20419685,105710.0,105700.0,0.32197218]
[1748601235568,0.22059685,105710.0,105700.0,0.32197218]
[1748601236232,0.22059685,105710.0,105700.0,0.02781218]
[1748601236460,0.4031708,105710.0,105700.0,0.02781218]
[1748601236680,0.4031708,105710.0,105700.0,0.01293106]
[1748601236898,0.4031708,105710.0,105700.0,0.01294536]
[1748601237124,0.4031708,105710.0,105700.0,0.004]
[1748601238238,0.4031708,105710.0,105700.0,0.002]
[1748601238456,0.1986753,105700.0,105690.0,0.00013257]
[1748601238695,0.32182925,105700.0,105690.0,0.0090791]
[1748601239439,0.2912898,105700.0,105690.0,0.0090791]
[1748601241391,0.66237716,105700.0,105690.0,0.0090791]
[1748601241628,0.66237716,105700.0,105660.0,0.01488112]
[1748601241629,0.21956847,105670.0,105660.0,0.01488112]
[1748601241853,0.41160566,105670.0,105660.0,0.01488112]
[1748601242078,0.41160566,105670.0,105630.0,0.02976468]
[1748601242079,0.23065053,105660.0,105650.0,0.01488112]
[1748601242300,0.23065053,105660.0,105640.0,0.01488112]
[1748601242301,0.23066933,105650.0,105640.0,0.01488112]
[1748601242533,0.21506933,105650.0,105640.0,0.01488112]
[1748601242786,0.21489923,105650.0,105640.0,0.01488112]
[1748601243001,0.21489923,105650.0,105630.0,0.63548]
[1748601243002,0.18932222,105640.0,105630.0,0.66686112]
[1748601243227,0.19878815,105640.0,105630.0,0.66686112]
[1748601243446,0.1988371,105640.0,105630.0,0.66686112]
[1748601245481,0.1988371,105640.0,105630.0,0.66986112]
[1748601245700,0.1988371,105640.0,105630.0,0.67286112]
[1748601245926,0.1988371,105640.0,105630.0,0.65636112]
[1748601246591,0.20830294,105640.0,105630.0,0.86180126]
[1748601246819,0.20830294,105640.0,105630.0,0.67246112]
[1748601247047,0.19870145,105640.0,105630.0,0.6820391]
[1748601247256,0.19070145,105640.0,105630.0,0.6820391]
[1748601247699,0.19070145,105640.0,105630.0,0.3865591]
[1748601247915,0.19070145,105640.0,105630.0,0.6831591]
[1748601248132,0.19070145,105640.0,105630.0,0.6671391]
[1748601248350,0.19070145,105640.0,105630.0,0.3704591]
[1748601248575,0.19070145,105640.0,105630.0,0.65225798]
[1748601249242,0.19053495,105640.0,105630.0,0.65225798]
[1748601249460,0.1902291,105640.0,105630.0,0.65225798]
[1748601249688,0.1900917,105640.0,105630.0,0.65213798]
[1748601249911,0.1900917,105640.0,105630.0,0.35557798]
[1748601250145,0.1900917,105640.0,105630.0,0.65213798]
[1748601252392,0.1900917,105640.0,105630.0,0.84147812]
[1748601252633,0.00951488,105640.0,105630.0,0.85687812]
[1748601252849,0.03791195,105640.0,105630.0,0.89101149]
[1748601253077,0.02844584,105640.0,105630.0,0.90047787]
[1748601253289,0.03791177,105640.0,105630.0,0.90047787]
[1748601253502,0.04737779,105640.0,105630.0,0.90938158]
[1748601253960,0.04727736,105640.0,105630.0,0.8999152]
[1748601254180,0.04727736,105640.0,105630.0,0.90938166]
[1748601254396,0.22718612,105640.0,105630.0,0.89991529]
[1748601254608,0.22718612,105640.0,105630.0,0.88471529]
[1748601254851,0.21772028,105640.0,105630.0,0.89418184]
[1748601256703,0.21772028,105640.0,105630.0,0.87878184]
[1748601256925,0.21772028,105640.0,105630.0,0.86931529]
[1748601257165,0.21753812,105640.0,105630.0,0.86931529]
[1748601257587,0.18932222,105640.0,105630.0,0.36448169]
[1748601257811,0.22042222,105640.0,105630.0,0.36448169]
[1748601258069,0.22042222,105640.0,105630.0,0.66112169]
[1748601258352,0.29626958,105640.0,105630.0,0.02448169]
[1748601258580,0.38732353,105640.0,105630.0,0.02448169]
[1748601258802,0.47956353,105640.0,105630.0,0.01557798]
[1748601259494,0.40371617,105640.0,105630.0,0.01557798]
[1748601259717,0.31147617,105640.0,105630.0,0.01557798]
[1748601260383,0.31147617,105640.0,105630.0,0.01573503]
[1748601262388,0.31147617,105640.0,105630.0,0.02466759]
[1748601264255,0.31147617,105640.0,105630.0,0.02467083]
[1748601264461,0.31147617,105640.0,105630.0,0.02485983]
[1748601268376,0.31147617,105640.0,105630.0,0.01592403]
[1748601268596,0.31147617,105640.0,105630.0,0.02489145]
[1748601270714,0.31147617,105640.0,105630.0,0.36489145]
[1748601272551,0.31147617,105640.0,105630.0,0.02489145]
[1748601272767,0.31147617,105640.0,105630.0,0.36489145]
[1748601278544,0.29617617,105640.0,105630.0,0.36489145]
[1748601278773,0.31167617,105640.0,105630.0,0.37610222]
[1748601280125,0.31167617,105640.0,105630.0,0.03610222]
[1748601280577,0.31167617,105640.0,105630.0,0.02489145]
[1748601280792,0.31167617,105640.0,105630.0,0.01531347]
[1748601281300,0.60831617,105640.0,105630.0,0.01531347]
[1748601281515,0.60831617,105640.0,105630.0,0.01231347]
[1748601281940,0.60831617,105640.0,105630.0,0.01431347]
[1748601282804,0.60831617,105640.0,105630.0,0.01131347]
[1748601283024,0.60831617,105640.0,105630.0,0.01331347]
[1748601289658,0.60831617,105640.0,105630.0,0.01332857]
[1748601293257,0.60831617,105640.0,105630.0,0.01332734]
[1748601293501,0.60831617,105640.0,105630.0,0.00434605]
[1748601296943,0.62692917,105640.0,105630.0,0.00434605]
[1748601297532,0.62692917,105640.0,105630.0,0.00234605]
[1748601297727,0.62544917,105640.0,105630.0,0.00034605]
[1748601300410,0.33028917,105640.0,105630.0,0.00034605]
[1748601300591,0.62516917,105640.0,105630.0,0.00034605]
[1748601301161,0.69955617,105640.0,105630.0,0.00933129]
[1748601301364,0.69955617,105640.0,105630.0,0.00034605]
[1748601305149,0.31167617,105640.0,105630.0,0.00034605]
[1748601305360,0.37209617,105640.0,105630.0,0.00034605]
[1748601305587,0.37209617,105640.0,105630.0,0.02463165]
[1748601306000,0.37209617,105640.0,105630.0,0.02463074]
[1748601309698,0.37209617,105640.0,105630.0,0.00933074]
[1748601310360,0.37209617,105640.0,105630.0,0.02056161]
[1748601310570,0.37209617,105640.0,105630.0,0.03706161]
[1748601311941,0.18932222,105640.0,105630.0,0.05296161]
[1748601314632,0.18932222,105640.0,105630.0,0.05294694]
[1748601316291,0.18932222,105640.0,105630.0,0.0679199]
[1748601317597,0.18932222,105640.0,105630.0,0.1179199]
[1748601318266,0.18932222,105640.0,105630.0,0.0855199]
[1748601318267,0.38712353,105640.0,105630.0,0.0855199]
[1748601318538,0.47884353,105640.0,105630.0,0.05932422]
[1748601318784,0.47884353,105640.0,105630.0,0.00034605]
[1748601321966,0.40299617,105640.0,105630.0,0.00034605]
[1748601326058,0.69759617,105640.0,105630.0,0.00034605]
[1748601326296,0.69759617,105640.0,105630.0,0.00932262]
[1748601327409,0.40299617,105640.0,105630.0,0.00932248]
[1748601328073,0.69819617,105640.0,105630.0,0.00932248]
[1748601329699,0.69819617,105640.0,105630.0,0.00034605]
[1748601333293,0.69815617,105640.0,105630.0,0.00034605]
[1748601335271,0.69827617,105640.0,105630.0,0.00034605]
[1748601347419,0.69827617,105640.0,105630.0,0.00934849]
[1748601348645,0.40319617,105640.0,105630.0,0.00934849]
[1748601348852,0.69783617,105640.0,105630.0,0.00934849]
[1748601349057,0.69783617,105640.0,105630.0,0.00935386]
[1748601353465,0.69783617,105640.0,105630.0,0.00935553]
[1748601355902,0.29567617,105640.0,105630.0,0.00935553]
[1748601356135,0.68223617,105640.0,105630.0,0.00935631]
[1748601356528,0.69743617,105640.0,105630.0,0.00935631]
[1748601357959,0.69743617,105640.0,105630.0,0.00935794]
[1748601361213,0.66693617,105640.0,105630.0,0.00936063]
[1748601361622,0.68233617,105640.0,105630.0,0.00936063]
[1748601362441,0.29577617,105640.0,105630.0,0.00936063]
[1748601362738,0.37229617,105640.0,105630.0,0.02576063]
[1748601362943,0.37229617,105640.0,105630.0,0.04146063]
[1748601362944,0.28037617,105640.0,105630.0,0.04146063]
[1748601363162,0.66693617,105640.0,105630.0,0.04146063]
[1748601363386,0.28037617,105640.0,105630.0,0.04146063]
[1748601363608,0.18932222,105640.0,105630.0,0.40770182]
[1748601363827,0.18932222,105640.0,105630.0,0.46145252]
[1748601364265,0.28037617,105640.0,105630.0,0.44647956]
[1748601364480,0.28037617,105640.0,105630.0,0.46147855]
[1748601364754,0.37229617,105640.0,105630.0,0.10577855]
[1748601364975,0.40479617,105640.0,105630.0,0.02059619]
[1748601365232,0.40479617,105640.0,105630.0,0.00934611]
[1748601366348,0.40479617,105640.0,105630.0,0.00034605]
[1748601366998,0.40479617,105640.0,105630.0,0.00934996]
[1748601367464,0.74479617,105640.0,105630.0,0.00934996]
[1748601367894,0.72849617,105640.0,105630.0,0.00934996]
[1748601368109,0.71229617,105640.0,105630.0,0.00934996]
[1748601368319,0.62037617,105640.0,105630.0,0.00934996]
[1748601368541,1.00665617,105640.0,105630.0,0.02584996]
[1748601368977,0.71205617,105640.0,105630.0,0.02584996]
[1748601369204,0.37205617,105640.0,105630.0,0.02584969]
[1748601369427,0.28037617,105640.0,105630.0,0.04194969]
[1748601369674,0.28037617,105640.0,105630.0,0.05320424]
[1748601369892,0.28037617,105640.0,105630.0,0.05695622]
[1748601370119,0.28037617,105640.0,105630.0,0.0356062]
[1748601370329,0.28037617,105640.0,105630.0,0.02059967]
[1748601373577,0.28037617,105640.0,105630.0,0.02059357]
[1748601375324,0.28037617,105640.0,105630.0,0.03649357]
[1748601377971,0.28037617,105640.0,105630.0,0.03648952]
[1748601380608,0.28037617,105640.0,105630.0,0.02058952]
[1748601382354,0.28037617,105640.0,105630.0,0.02057557]
[1748601382588,0.28037617,105640.0,105630.0,0.03647557]
[1748601383492,0.28037617,105640.0,105630.0,0.39277557]
[1748601386600,0.28037617,105640.0,105630.0,0.39278664]
[1748601389441,0.28037617,105640.0,105630.0,0.40779317]
[1748601390511,0.18932222,105640.0,105630.0,0.3965484]
[1748601390927,0.18932222,105640.0,105630.0,0.39654472]
[1748601391559,0.18932222,105640.0,105630.0,0.4614486]
[1748601392030,0.18932222,105640.0,105630.0,0.7559286]
[1748601392245,0.00946539,105640.0,105630.0,1.04502356]
[1748601392456,0.18588543,105650.0,105640.0,0.24015417]
[1748601392665,0.18588543,105650.0,105640.0,0.32013211]
[1748601392882,0.18588543,105650.0,105640.0,0.32361892]
[1748601393733,0.18588543,105650.0,105640.0,0.10589864]
[1748601393940,0.18588543,105650.0,105640.0,0.30705319]
[1748601394224,0.20821475,105660.0,105650.0,0.57893454]
[1748601394450,0.20821475,105660.0,105650.0,0.74495867]
[1748601394700,0.20821475,105660.0,105650.0,0.68912143]
[1748601394917,0.20805375,105660.0,105650.0,0.6890993]
[1748601395836,0.20805375,105660.0,105650.0,0.8784036]
[1748601396074,0.20805375,105660.0,105650.0,0.88786881]
[1748601396539,0.20805375,105660.0,105650.0,0.89733393]
[1748601397046,0.20805375,105660.0,105650.0,0.90033393]
[1748601397297,0.20805375,105660.0,105650.0,0.90979896]
[1748601397503,0.20805375,105660.0,105650.0,0.91926372]
[1748601397717,0.20805375,105660.0,105650.0,0.70156451]
[1748601397934,0.20805375,105660.0,105650.0,0.6920993]
[1748601398400,0.16805375,105660.0,105650.0,0.6920993]
[1748601399042,0.16805375,105660.0,105650.0,0.89085594]
[1748601399249,0.16805375,105660.0,105650.0,0.90032106]
[1748601399687,0.1585897,105660.0,105650.0,0.90032106]
[1748601400419,0.1585897,105660.0,105650.0,0.89085594]
[1748601400631,0.1585897,105660.0,105650.0,0.69208643]
[1748601400853,0.1585897,105660.0,105650.0,0.88139073]
[1748601401079,0.1585897,105660.0,105650.0,0.90032106]
[1748601401984,0.1585897,105660.0,105650.0,0.89085594]
[1748601402246,0.14912539,105660.0,105650.0,0.89085594]
[1748601402466,0.14912539,105660.0,105650.0,0.69208643]
[1748601403123,0.14912539,105660.0,105650.0,0.68312929]
[1748601403352,0.14912539,105660.0,105650.0,0.69207999]
[1748601404051,0.14912539,105660.0,105650.0,0.88138429]
[1748601404265,0.14912539,105660.0,105650.0,0.69207999]
[1748601405578,0.10912539,105660.0,105650.0,0.70327006]
[1748601407499,0.10912539,105660.0,105650.0,0.89257658]
[1748601408206,0.10912539,105660.0,105650.0,0.39309228]
[1748601408421,0.10912539,105660.0,105650.0,0.67626173]
[1748601408672,0.10912539,105660.0,105650.0,0.69153971]
[1748601411208,0.10912539,105660.0,105650.0,0.88084401]
[1748601411421,0.10912539,105660.0,105650.0,0.89030904]
[1748601411641,0.11858961,105660.0,105650.0,0.89030904]
[1748601411863,0.19475917,105670.0,105660.0,0.57971466]
[1748601411864,0.20422259,105670.0,105660.0,0.57971466]
[1748601412080,0.20422259,105670.0,105650.0,1.0398994]
[1748601412081,0.00946378,105660.0,105650.0,1.0353268]
[1748601412290,0.0094636,105660.0,105650.0,1.4353268]
[1748601412518,0.17368574,105670.0,105660.0,0.20821475]
[1748601412728,0.17368574,105670.0,105660.0,0.21940514]
[1748601413393,0.17368574,105670.0,105660.0,0.22886945]
[1748601413620,0.02441673,105670.0,105660.0,0.23833332]
[1748601413846,0.02838864,105670.0,105660.0,0.44495128]
[1748601414059,0.03785188,105670.0,105660.0,0.78495128]
[1748601414280,0.028389,105670.0,105660.0,0.78495128]
[1748601414508,0.18925056,105680.0,105670.0,0.20819468]
[1748601414727,0.18925056,105680.0,105670.0,0.49305171]
[1748601414941,0.18925056,105680.0,105670.0,0.60983708]
[1748601415161,0.18925056,105680.0,105670.0,0.63913708]
[1748601415372,0.18925056,105680.0,105670.0,0.6676908]
[1748601415813,0.18924862,105690.0,105680.0,0.34]
[1748601416023,0.18924862,105690.0,105680.0,0.54555056]
[1748601416241,0.18924862,105690.0,105680.0,0.56620371]
[1748601416515,0.18926082,105700.0,105690.0,0.19869429]
[1748601416728,0.18926082,105700.0,105690.0,0.64982]
[1748601416946,0.18926082,105700.0,105690.0,0.63432]
[1748601417173,0.18926082,105700.0,105690.0,0.63445908]
[1748601418711,0.19026082,105700.0,105690.0,0.83919174]
[1748601418932,0.19026082,105700.0,105690.0,0.85811473]
[1748601419153,0.19026082,105700.0,105690.0,0.97490016]
[1748601419371,0.19972155,105700.0,105690.0,0.98860016]
[1748601419602,0.16918201,105700.0,105690.0,0.97405931]
[1748601420037,0.16918201,105700.0,105690.0,1.0024366]
[1748601420265,0.16918201,105700.0,105690.0,1.00243606]
[1748601420478,0.00946046,105700.0,105690.0,1.02071423]
[1748601420706,0.1892669,105710.0,105700.0,0.57733559]
[1748601420707,0.20811626,105710.0,105700.0,0.57733559]
[1748601420946,0.21757565,105710.0,105700.0,0.69411659]
[1748601421167,0.20811599,105710.0,105700.0,0.69785226]
[1748601421388,0.20811626,105710.0,105700.0,0.46147565]
[1748601421610,0.2313566,105710.0,105700.0,0.65486574]
[1748601422041,0.1986566,105710.0,105700.0,0.65859748]
[1748601422485,0.2313566,105710.0,105700.0,0.65859748]
[1748601422903,0.2313566,105710.0,105700.0,1.05859748]
[1748601423338,0.20919123,105710.0,105700.0,1.05859748]
[1748601423766,0.19279123,105710.0,105700.0,1.05859748]
[1748601423982,0.19279123,105710.0,105700.0,1.06754194]
[1748601424228,0.19279123,105710.0,105700.0,1.0787188]
[1748601424456,0.19279123,105710.0,105700.0,1.07871838]
[1748601424676,0.20919123,105710.0,105700.0,1.07871838]
[1748601425132,0.20919123,105710.0,105700.0,1.06754194]
[1748601425351,0.20919123,105710.0,105700.0,1.14346009]
[1748601425577,0.20919123,105710.0,105700.0,1.09054504]
[1748601426030,0.20919123,105710.0,105700.0,1.07554334]
[1748601426279,0.20919123,105710.0,105700.0,0.04134334]
[1748601426528,0.20919123,105710.0,105700.0,0.03017022]
[1748601426776,0.20919123,105710.0,105700.0,0.03016628]
[1748601426994,0.20919123,105710.0,105700.0,0.37016628]
[1748601427441,0.16919123,105710.0,105700.0,0.37016628]
[1748601429280,0.16919123,105710.0,105700.0,0.3583363]
[1748601430361,0.16919123,105710.0,105700.0,0.0183363]
[1748601431217,0.16919123,105710.0,105700.0,0.02057144]
[1748601431419,0.16919123,105710.0,105700.0,0.02951196]
[1748601431847,0.16919123,105710.0,105700.0,0.03187702]
[1748601432481,0.16919123,105710.0,105700.0,0.04361596]
[1748601432717,0.15279123,105710.0,105700.0,0.04361596]
[1748601434200,0.15279123,105710.0,105700.0,0.0412509]
[1748601434639,0.15279123,105710.0,105700.0,0.58775221]
[1748601434640,0.13649123,105710.0,105700.0,0.58775221]
[1748601434865,0.2175752,105710.0,105700.0,0.71438683]
[1748601435089,0.22703495,105710.0,105700.0,0.71490651]
[1748601435302,0.22703495,105710.0,105700.0,0.70892953]
[1748601435741,0.22703495,105710.0,105700.0,1.10892953]
[1748601435961,0.22703495,105710.0,105700.0,1.10892962]
[1748601436398,0.21757574,105710.0,105700.0,1.09946933]
[1748601436617,0.21757574,105710.0,105700.0,1.2098699]
[1748601436863,0.21757574,105710.0,105700.0,1.2004097]
[1748601437716,0.22703558,105710.0,105700.0,1.2098699]
[1748601438179,0.22703558,105710.0,105700.0,1.2004097]
[1748601438670,0.01891869,105710.0,105700.0,1.23406231]
[1748601438918,0.16923731,105720.0,105710.0,0.22381626]
[1748601439187,0.16923731,105720.0,105710.0,0.63289424]
[1748601439447,0.16923731,105720.0,105710.0,0.64236289]
[1748601439628,0.01891708,105720.0,105710.0,1.06355928]
[1748601439845,0.02837593,105720.0,105710.0,1.04863997]
[1748601440058,0.21755489,105720.0,105710.0,1.05410083]
[1748601440525,0.02837593,105720.0,105710.0,1.04864006]
[1748601440744,0.01891655,105720.0,105710.0,1.39809927]
[1748601440956,0.03783381,105720.0,105710.0,1.39809927]
[1748601441173,0.02837505,105720.0,105710.0,1.39809927]
[1748601441417,0.04729248,105720.0,105710.0,1.39809927]
[1748601442307,0.00568629,105720.0,105710.0,1.41179927]
[1748601442527,0.01891691,105720.0,105710.0,1.40333889]
[1748601442738,0.02837505,105720.0,105710.0,1.40333889]
[1748601442949,0.02837505,105720.0,105710.0,1.40433889]
[1748601443167,0.03783372,105720.0,105710.0,1.40433889]
[1748601443411,0.00621373,105720.0,105710.0,1.40433889]
[1748601443623,0.02513064,105720.0,105710.0,1.40434259]
[1748601443842,0.03458931,105720.0,105710.0,1.40434259]
[1748601444048,0.02513064,105720.0,105710.0,1.40434259]
[1748601444277,0.03458931,105720.0,105710.0,1.40434259]
[1748601444496,0.04404807,105720.0,105710.0,1.40434259]
[1748601444708,0.02513064,105720.0,105710.0,1.40434259]
[1748601444920,0.0345894,105720.0,105710.0,1.40434259]
[1748601445139,0.02513046,105720.0,105710.0,1.40434259]
[1748601445364,0.03458905,105720.0,105710.0,1.40434259]
[1748601445581,0.02513046,105720.0,105710.0,1.40434259]
[1748601445853,0.03458905,105720.0,105710.0,1.40434259]
[1748601446068,0.02513055,105720.0,105710.0,1.40434259]
[1748601446275,0.01567205,105720.0,105710.0,1.3926055]
[1748601446699,0.02513055,105720.0,105710.0,1.3926055]
[1748601446937,0.03458922,105720.0,105710.0,1.40386769]
[1748601447156,0.03458922,105720.0,105710.0,1.39016769]
[1748601447368,0.02513055,105720.0,105710.0,1.39016769]
[1748601447590,0.02513046,105720.0,105710.0,1.40386769]
[1748601447815,0.01891708,105720.0,105710.0,1.47719318]
[1748601448031,0.01891664,105720.0,105710.0,1.47719318]
[1748601448259,0.03783408,105720.0,105710.0,1.47095338]
[1748601448471,0.02837523,105720.0,105710.0,1.47095338]
[1748601448918,0.22701304,105720.0,105710.0,1.47095338]
[1748601449138,0.2235964,105720.0,105710.0,1.04247409]
[1748601449347,0.2395964,105720.0,105710.0,1.06139314]
[1748601449564,0.23305534,105720.0,105710.0,1.46587165]
[1748601449821,0.23305534,105720.0,105710.0,1.44695314]
[1748601450033,0.24925534,105720.0,105710.0,1.43749375]
[1748601450237,0.24925534,105720.0,105710.0,1.05235989]
[1748601450238,0.23979675,105720.0,105710.0,1.05235989]
[1748601450442,0.23979675,105720.0,105710.0,1.35585955]
[1748601450652,0.2303379,105720.0,105710.0,1.35585955]
[1748601451098,0.2303379,105720.0,105710.0,1.36531912]
[1748601451526,0.2303379,105720.0,105710.0,1.24546014]
[1748601451736,0.2303379,105720.0,105710.0,1.25491989]
[1748601451944,0.2303379,105720.0,105710.0,1.25492028]
[1748601452406,0.2303379,105720.0,105710.0,1.26437994]
[1748601452832,0.2303379,105720.0,105710.0,1.27383951]
[1748601453041,0.2303379,105720.0,105710.0,1.26257732]
[1748601453728,0.2303379,105720.0,105710.0,1.26270229]
[1748601453948,0.2303379,105720.0,105710.0,1.25324272]
[1748601454156,0.2303379,105720.0,105710.0,1.26270229]
[1748601454382,0.2303379,105720.0,105710.0,0.76125049]
[1748601454591,0.2303379,105720.0,105710.0,1.05529049]
[1748601455757,0.2303379,105720.0,105710.0,0.77619014]
[1748601455989,0.30618526,105720.0,105710.0,0.03619014]
[1748601456218,0.39723921,105720.0,105710.0,0.02125649]
[1748601456439,0.39723921,105720.0,105710.0,0.01109246]
[1748601456883,0.39723921,105720.0,105710.0,0.01009246]
[1748601456884,0.32139185,105720.0,105710.0,0.01009246]
[1748601457336,0.32239185,105720.0,105710.0,0.00909246]
[1748601457540,0.32439185,105720.0,105710.0,0.00909246]
[1748601459463,0.41583185,105720.0,105710.0,0.00909246]
[1748601460167,0.41583185,105720.0,105710.0,0.00909482]
[1748601460815,0.70987185,105720.0,105710.0,0.00909482]
[1748601462541,0.37583185,105720.0,105710.0,0.00909482]
[1748601463015,0.28439185,105720.0,105710.0,0.00909482]
[1748601463455,0.1933379,105720.0,105710.0,0.00909482]
[1748601463672,0.1933379,105720.0,105710.0,0.02030713]
[1748601465420,0.2091379,105720.0,105710.0,0.00909482]
[1748601467109,0.30019185,105720.0,105710.0,0.00909482]
[1748601469488,0.26019185,105720.0,105710.0,0.00909626]
[1748601470921,0.64462006,105720.0,105710.0,0.00012497]
[1748601475819,0.55423185,105720.0,105710.0,0.00012497]
[1748601476453,0.64567185,105720.0,105710.0,0.00012497]
[1748601482208,0.6602127,105720.0,105710.0,0.00012497]
[1748601482662,0.24033559,105700.0,105690.0,0.00013908]
[1748601482878,0.42282954,105700.0,105690.0,0.00013908]
[1748601484696,0.42482954,105700.0,105690.0,0.00013908]
[1748601485780,0.42471033,105700.0,105690.0,0.00013908]
[1748601486222,0.72031033,105700.0,105690.0,0.00013908]
[1748601488395,0.72231033,105700.0,105690.0,0.00013908]
[1748601490112,0.72218906,105700.0,105690.0,0.00013908]
[1748601490326,0.72205386,105700.0,105690.0,0.00013908]
[1748601490808,0.73659471,105700.0,105690.0,0.00013908]
[1748601492522,1.14568471,105700.0,105690.0,0.00013908]
[1748601492981,1.13114386,105700.0,105690.0,0.00013908]
[1748601493467,1.1309934,105700.0,105690.0,0.00013908]
[1748601493706,1.1409934,105700.0,105690.0,0.00013908]
[1748601494879,1.2406434,105700.0,105690.0,0.00013908]
[1748601496430,0.3539534,105700.0,105690.0,0.00013908]
[1748601496660,0.4271834,105700.0,105690.0,0.00013908]
[1748601496883,0.7229034,105700.0,105690.0,0.00013908]
[1748601497740,0.72278542,105700.0,105690.0,0.00013908]
[1748601498396,0.72266542,105700.0,105690.0,0.00013908]
[1748601498849,0.72266542,105700.0,105690.0,0.00032317]
[1748601500155,0.33474542,105700.0,105690.0,0.00032317]
[1748601500374,0.72246542,105700.0,105690.0,0.00032317]
[1748601501558,0.41126542,105700.0,105690.0,0.00032317]
[1748601501766,0.70666542,105700.0,105690.0,0.00032317]
[1748601502191,0.41126542,105700.0,105690.0,0.00032317]
[1748601502406,0.70670542,105700.0,105690.0,0.00930013]
[1748601502613,0.69026542,105700.0,105690.0,0.00930013]
[1748601503042,0.30254542,105700.0,105690.0,0.00930013]
[1748601503261,0.30254542,105700.0,105690.0,0.04120013]
[1748601503262,0.39486542,105700.0,105690.0,0.04120013]
[1748601504366,0.39486542,105700.0,105690.0,0.05242136]
[1748601504585,0.30381147,105700.0,105690.0,0.05242136]
[1748601506159,0.29981147,105700.0,105690.0,0.05242136]
[1748601506373,0.30181147,105700.0,105690.0,0.05242136]
[1748601506662,0.26181147,105700.0,105690.0,0.05242136]
[1748601506874,0.28073231,105700.0,105690.0,0.05242136]
[1748601508679,0.28073231,105700.0,105690.0,0.04120013]
[1748601508887,0.28073231,105700.0,105690.0,0.04119976]
[1748601509108,0.28073231,105700.0,105690.0,0.02559976]